[Event "Live Chess"]
[Site "Chess.com"]
[Date "2023.05.21"]
[Round "-"]
[White "smoggyrabbit"]
[Black "tpm07"]
[Result "0-1"]
[WhiteElo "1745"]
[BlackElo "1950"]
[TimeControl "300"]
[EndTime "20:03:15 PDT"]
[Termination "tpm07 won on time"]

1. d4 {[%clk 0:04:57.9]} 1... Nf6 {[%clk 0:04:58.4]} 2. Nf3 {[%clk 0:04:56.5]}
2... d5 {[%clk 0:04:56.4]} 3. e3 {[%clk 0:04:54.3]} 3... c5 {[%clk 0:04:54.9]}
4. b3 {[%clk 0:04:46.9]} 4... g6 {[%clk 0:04:52.1]} 5. Be2 {[%clk 0:04:43.4]}
5... Bg7 {[%clk 0:04:50.5]} 6. Bb2 {[%clk 0:04:42.1]} 6... O-O {[%clk
0:04:48.3]} 7. O-O {[%clk 0:04:40.4]} 7... b6 {[%clk 0:04:47.3]} 8. Nbd2 {[%clk
0:04:37.8]} 8... Bb7 {[%clk 0:04:46.6]} 9. c4 {[%clk 0:04:31.5]} 9... cxd4
{[%clk 0:04:41.7]} 10. exd4 {[%clk 0:04:21.5]} 10... Nc6 {[%clk 0:04:40.4]} 11.
Ne5 {[%clk 0:03:59.7]} 11... dxc4 {[%clk 0:04:30.1]} 12. Nxc6 {[%clk 0:03:41.1]}
12... Bxc6 {[%clk 0:04:26.2]} 13. bxc4 {[%clk 0:03:39.8]} 13... Rc8 {[%clk
0:04:12.3]} 14. Bf3 {[%clk 0:03:24.2]} 14... Bxf3 {[%clk 0:04:10]} 15. Qxf3
{[%clk 0:03:24.1]} 15... e6 {[%clk 0:04:04.7]} 16. Rac1 {[%clk 0:03:10.4]} 16...
Nd7 {[%clk 0:04:02.8]} 17. Nb3 {[%clk 0:03:01.4]} 17... Qf6 {[%clk 0:03:51.3]}
18. Qxf6 {[%clk 0:02:55.2]} 18... Nxf6 {[%clk 0:03:51.2]} 19. Rfd1 {[%clk
0:02:44.3]} 19... Rfd8 {[%clk 0:03:50.3]} 20. c5 {[%clk 0:02:31.3]} 20... Nd5
{[%clk 0:03:44.7]} 21. cxb6 {[%clk 0:02:23.5]} 21... Nxb6 {[%clk 0:03:36.2]} 22.
Rxc8 {[%clk 0:02:18.5]} 22... Rxc8 {[%clk 0:03:34.8]} 23. h3 {[%clk 0:02:01.3]}
23... Kf8 {[%clk 0:03:25.5]} 24. Rc1 {[%clk 0:01:53.9]} 24... Rxc1+ {[%clk
0:03:21.5]} 25. Bxc1 {[%clk 0:01:53]} 25... Ke7 {[%clk 0:03:18.3]} 26. Kf1
{[%clk 0:01:51.1]} 26... Kd7 {[%clk 0:03:16.9]} 27. Ke2 {[%clk 0:01:49.9]} 27...
Nd5 {[%clk 0:03:11.9]} 28. Bd2 {[%clk 0:01:40.4]} 28... Kc6 {[%clk 0:03:07.4]}
29. Kd3 {[%clk 0:01:38.5]} 29... Kb5 {[%clk 0:03:00.9]} 30. Nc5 {[%clk
0:01:32.6]} 30... Nb4+ {[%clk 0:02:55.1]} 31. Bxb4 {[%clk 0:01:13.8]} 31... Kxb4
{[%clk 0:02:54]} 32. Ke4 {[%clk 0:00:52.1]} 32... Kc4 {[%clk 0:02:46.6]} 33. Nb7
{[%clk 0:00:46]} 33... f5+ {[%clk 0:02:32.7]} 34. Kf4 {[%clk 0:00:37.8]} 34...
Kxd4 {[%clk 0:02:16.2]} 35. Nd8 {[%clk 0:00:32.6]} 35... e5+ {[%clk 0:02:14]}
36. Kg5 {[%clk 0:00:27.9]} 36... Kd5 {[%clk 0:02:00.9]} 37. g4 {[%clk 0:00:19]}
37... fxg4 {[%clk 0:01:58.1]} 38. hxg4 {[%clk 0:00:18.9]} 38... a5 {[%clk
0:01:39.5]} 39. Nf7 {[%clk 0:00:16.1]} 39... a4 {[%clk 0:01:21.4]} 40. Kh4
{[%clk 0:00:14.7]} 40... a3 {[%clk 0:01:06.8]} 41. g5 {[%clk 0:00:13.3]} 41...
Kc4 {[%clk 0:01:02.2]} 42. Kg4 {[%clk 0:00:09.6]} 42... Kc3 {[%clk 0:01:00.7]}
43. Nd6 {[%clk 0:00:07.7]} 43... Kb2 {[%clk 0:00:57.2]} 44. Ne8 {[%clk
0:00:06.6]} 44... Bh8 {[%clk 0:00:53.7]} 45. Nd6 {[%clk 0:00:03]} 45... Kxa2
{[%clk 0:00:52]} 46. Nc4 {[%clk 0:00:02.4]} 46... Kb3 {[%clk 0:00:48.2]} 47.
Nxa3 {[%clk 0:00:02.3]} 47... Kxa3 {[%clk 0:00:47.3]} 48. Kf3 {[%clk 0:00:02.2]}
48... Kb4 {[%clk 0:00:46.4]} 49. Ke4 {[%clk 0:00:02.1]} 49... Kc5 {[%clk
0:00:45]} 50. f4 {[%clk 0:00:02]} 50... exf4 {[%clk 0:00:43.3]} 51. Kxf4 {[%clk
0:00:01.9]} 51... Kd5 {[%clk 0:00:42.3]} 52. Kg4 {[%clk 0:00:01.8]} 52... Ke5
{[%clk 0:00:41.3]} 53. Kh4 {[%clk 0:00:01.7]} 53... Kf5 {[%clk 0:00:40.6]} 54.
Kh3 {[%clk 0:00:01]} 54... Kxg5 {[%clk 0:00:40]} 55. Kg3 {[%clk 0:00:00.5]}
55... h5 {[%clk 0:00:38.5]} 56. Kh3 {[%clk 0:00:00.4]} 56... Be5 {[%clk
0:00:35.1]} 0-1

[Event "Live Chess"]
[Site "Chess.com"]
[Date "2023.05.21"]
[Round "-"]
[White "chessfiction"]
[Black "OceanFloater"]
[Result "1-0"]
[WhiteElo "2343"]
[BlackElo "1019"]
[TimeControl "300"]
[EndTime "20:03:18 PDT"]
[Termination "chessfiction won by resignation"]

1. e4 {[%clk 0:04:58.2]} 1... c6 {[%clk 0:04:58.5]} 2. d4 {[%clk 0:04:58.1]}
2... d5 {[%clk 0:04:57.9]} 3. Nc3 {[%clk 0:04:57.1]} 3... e6 {[%clk 0:04:52.9]}
4. Nf3 {[%clk 0:04:53.2]} 4... c5 {[%clk 0:04:49.1]} 5. exd5 {[%clk 0:04:51.6]}
5... exd5 {[%clk 0:04:47.6]} 6. Bb5+ {[%clk 0:04:49.8]} 6... Nc6 {[%clk
0:04:44.9]} 7. O-O {[%clk 0:04:49.7]} 7... cxd4 {[%clk 0:04:42.3]} 8. Nxd4
{[%clk 0:04:47.8]} 8... Bd7 {[%clk 0:04:38.6]} 9. Re1+ {[%clk 0:04:45.6]} 9...
Be7 {[%clk 0:04:36.2]} 10. Bxc6 {[%clk 0:04:42.4]} 10... bxc6 {[%clk 0:04:34.3]}
11. Qe2 {[%clk 0:04:36.1]} 11... c5 {[%clk 0:04:28.7]} 12. Ndb5 {[%clk
0:04:31.4]} 12... Bxb5 {[%clk 0:04:27.3]} 13. Qxb5+ {[%clk 0:04:22.4]} 13... Kf8
{[%clk 0:04:24.7]} 14. Bf4 {[%clk 0:04:19.4]} 14... d4 {[%clk 0:04:19.6]} 15.
Rad1 {[%clk 0:04:15.6]} 15... Qb6 {[%clk 0:04:15.2]} 16. Qxb6 {[%clk 0:04:09.4]}
16... axb6 {[%clk 0:04:14.7]} 17. Nd5 {[%clk 0:04:09.2]} 17... Bd8 {[%clk
0:04:11.4]} 18. Bd6+ {[%clk 0:04:07]} 18... Be7 {[%clk 0:04:08.5]} 19. Nxe7
{[%clk 0:04:06.2]} 19... Nxe7 {[%clk 0:04:07.3]} 20. Rxe7 {[%clk 0:04:05.1]}
20... f6 {[%clk 0:04:00.8]} 21. Ra7+ {[%clk 0:04:02.8]} 21... Ke8 {[%clk
0:03:55.7]} 22. Re1+ {[%clk 0:03:59.8]} 1-0

[Event "Live Chess"]
[Site "Chess.com"]
[Date "2023.05.21"]
[Round "-"]
[White "grillage"]
[Black "Biranidun"]
[Result "0-1"]
[WhiteElo "1808"]
[BlackElo "2507"]
[TimeControl "300"]
[EndTime "20:04:00 PDT"]
[Termination "Biranidun won by resignation"]

1. d4 {[%clk 0:04:59.2]} 1... Nf6 {[%clk 0:04:59.1]} 2. Nc3 {[%clk 0:04:57.5]}
2... d5 {[%clk 0:04:58]} 3. Bf4 {[%clk 0:04:56.6]} 3... g6 {[%clk 0:04:57.1]} 4.
e3 {[%clk 0:04:54.2]} 4... Bg7 {[%clk 0:04:56.6]} 5. Qd2 {[%clk 0:04:52.8]} 5...
O-O {[%clk 0:04:54.4]} 6. h4 {[%clk 0:04:51.9]} 6... h5 {[%clk 0:04:53.3]} 7.
Nf3 {[%clk 0:04:50.3]} 7... c5 {[%clk 0:04:52.9]} 8. O-O-O {[%clk 0:04:46.4]}
8... Nc6 {[%clk 0:04:51]} 9. Ne5 {[%clk 0:04:45.5]} 9... Qa5 {[%clk 0:04:49.6]}
10. Kb1 {[%clk 0:04:43.6]} 10... Bf5 {[%clk 0:04:48.4]} 11. f3 {[%clk
0:04:40.6]} 11... cxd4 {[%clk 0:04:47.4]} 12. exd4 {[%clk 0:04:39.1]} 12... Nb4
{[%clk 0:04:46.9]} 13. Rc1 {[%clk 0:04:15.3]} 13... Rac8 {[%clk 0:04:43.2]} 14.
a3 {[%clk 0:04:11]} 14... Nc6 {[%clk 0:04:42]} 15. Bd3 {[%clk 0:04:05.2]} 15...
Nxd4 {[%clk 0:04:38.8]} 16. Bxf5 {[%clk 0:04:00.4]} 16... Nxf5 {[%clk
0:04:38.7]} 17. g4 {[%clk 0:03:58.7]} 17... Nd6 {[%clk 0:04:36.5]} 18. gxh5
{[%clk 0:03:50.4]} 18... Nxh5 {[%clk 0:04:36.4]} 19. Nd3 {[%clk 0:03:30.1]}
19... Nc4 {[%clk 0:04:34.8]} 20. Qh2 {[%clk 0:03:26.5]} 20... Nxa3+ {[%clk
0:04:33.6]} 21. bxa3 {[%clk 0:03:21.2]} 21... Nxf4 {[%clk 0:04:32.9]} 22. Qxf4
{[%clk 0:03:09.1]} 22... Qxc3 {[%clk 0:04:32.2]} 0-1

[Event "Live Chess"]
[Site "Chess.com"]
[Date "2023.05.21"]
[Round "-"]
[White "alanmike75"]
[Black "Conradical12"]
[Result "0-1"]
[WhiteElo "1602"]
[BlackElo "1635"]
[TimeControl "300"]
[EndTime "20:04:49 PDT"]
[Termination "Conradical12 won by resignation"]

1. e4 {[%clk 0:04:57.5]} 1... e5 {[%clk 0:04:58.8]} 2. Nf3 {[%clk 0:04:56.1]}
2... Nc6 {[%clk 0:04:57.9]} 3. Bb5 {[%clk 0:04:54.4]} 3... Nf6 {[%clk
0:04:56.9]} 4. d3 {[%clk 0:04:52.1]} 4... Bc5 {[%clk 0:04:54.9]} 5. O-O {[%clk
0:04:46.5]} 5... d6 {[%clk 0:04:53.3]} 6. c3 {[%clk 0:04:43.4]} 6... a5 {[%clk
0:04:50.7]} 7. d4 {[%clk 0:04:42]} 7... exd4 {[%clk 0:04:41.1]} 8. cxd4 {[%clk
0:04:40.8]} 8... Bb6 {[%clk 0:04:36.5]} 9. d5 {[%clk 0:04:39.5]} 9... Bd7 {[%clk
0:04:35.4]} 10. dxc6 {[%clk 0:04:38.1]} 10... bxc6 {[%clk 0:04:35.3]} 11. Bd3
{[%clk 0:04:36.5]} 11... Ng4 {[%clk 0:04:33.5]} 12. h3 {[%clk 0:04:33.9]} 12...
h5 {[%clk 0:04:30.5]} 13. Bg5 {[%clk 0:04:21.7]} 13... f6 {[%clk 0:04:26.5]} 14.
Bf4 {[%clk 0:04:18.5]} 14... Qe7 {[%clk 0:04:12.8]} 15. Nc3 {[%clk 0:04:15.8]}
15... O-O-O {[%clk 0:04:11.3]} 16. a3 {[%clk 0:04:05]} 16... g5 {[%clk
0:04:00.1]} 17. Bh2 {[%clk 0:03:50.1]} 17... Nxh2 {[%clk 0:03:53.9]} 18. Nxh2
{[%clk 0:03:48.7]} 18... g4 {[%clk 0:03:53.4]} 19. hxg4 {[%clk 0:03:30.5]} 19...
hxg4 {[%clk 0:03:48.6]} 20. g3 {[%clk 0:03:23.6]} 20... Qh7 {[%clk 0:03:43.7]}
0-1

[Event "Live Chess"]
[Site "Chess.com"]
[Date "2023.05.21"]
[Round "-"]
[White "Tushinskiy"]
[Black "GEMdzq"]
[Result "1-0"]
[WhiteElo "2194"]
[BlackElo "2275"]
[TimeControl "300"]
[EndTime "20:06:00 PDT"]
[Termination "Tushinskiy won by resignation"]

1. d4 {[%clk 0:04:58.7]} 1... Nf6 {[%clk 0:04:58.5]} 2. c3 {[%clk 0:04:58.6]}
2... e6 {[%clk 0:04:57.5]} 3. Nf3 {[%clk 0:04:58.5]} 3... c5 {[%clk 0:04:56.8]}
4. Bf4 {[%clk 0:04:57.9]} 4... Nc6 {[%clk 0:04:55.9]} 5. e3 {[%clk 0:04:53.1]}
5... Qb6 {[%clk 0:04:53.8]} 6. Qc1 {[%clk 0:04:51.8]} 6... Nd5 {[%clk
0:04:52.4]} 7. Bg3 {[%clk 0:04:50.8]} 7... cxd4 {[%clk 0:04:44]} 8. exd4 {[%clk
0:04:50.7]} 8... Be7 {[%clk 0:04:41.7]} 9. Nbd2 {[%clk 0:04:49.2]} 9... d6
{[%clk 0:04:39.4]} 10. Bd3 {[%clk 0:04:48.4]} 10... f5 {[%clk 0:04:36.4]} 11.
O-O {[%clk 0:04:46.8]} 11... f4 {[%clk 0:04:29.7]} 12. Nc4 {[%clk 0:04:45.2]}
12... Qc7 {[%clk 0:04:28.3]} 13. Bxf4 {[%clk 0:04:43.3]} 13... O-O {[%clk
0:04:21.1]} 14. Bg3 {[%clk 0:04:41.7]} 14... b5 {[%clk 0:04:18.1]} 15. Ne3
{[%clk 0:04:40.3]} 15... Nf4 {[%clk 0:04:12.6]} 16. Bxf4 {[%clk 0:04:38.3]}
16... Rxf4 {[%clk 0:04:11.6]} 17. Nd5 {[%clk 0:04:37.6]} 17... exd5 {[%clk
0:04:04.9]} 18. Qxf4 {[%clk 0:04:35.5]} 18... Be6 {[%clk 0:04:03.2]} 19. Rae1
{[%clk 0:04:32.5]} 19... Bf7 {[%clk 0:03:59.6]} 20. Ng5 {[%clk 0:04:28.9]} 20...
Bxg5 {[%clk 0:03:53.7]} 21. Qxg5 {[%clk 0:04:28.8]} 21... Rf8 {[%clk 0:03:51.3]}
22. Re2 {[%clk 0:04:27.1]} 22... a6 {[%clk 0:03:47.7]} 23. Rfe1 {[%clk
0:04:25.9]} 23... Qa5 {[%clk 0:03:38.5]} 24. a3 {[%clk 0:04:24.1]} 24... Qb6
{[%clk 0:03:34.1]} 25. h4 {[%clk 0:04:22.7]} 25... Nd8 {[%clk 0:03:18.3]} 26. h5
{[%clk 0:04:20.3]} 26... Ne6 {[%clk 0:03:17.4]} 27. Rxe6 {[%clk 0:04:18.5]}
27... Bxe6 {[%clk 0:03:16.3]} 28. Rxe6 {[%clk 0:04:18.4]} 28... Qc7 {[%clk
0:03:06.6]} 29. h6 {[%clk 0:04:16.4]} 29... Qf7 {[%clk 0:03:05.5]} 30. Qxg7+
{[%clk 0:04:14.8]} 30... Qxg7 {[%clk 0:03:05]} 31. hxg7 {[%clk 0:04:14.5]} 1-0

[Event "Live Chess"]
[Site "Chess.com"]
[Date "2023.05.21"]
[Round "-"]
[White "ClassyChameleon"]
[Black "manthanit"]
[Result "1/2-1/2"]
[WhiteElo "1077"]
[BlackElo "1067"]
[TimeControl "300"]
[EndTime "20:07:02 PDT"]
[Termination "Game drawn - insufficient material"]

1. e4 {[%clk 0:04:57.5]} 1... e6 {[%clk 0:04:59.5]} 2. Nf3 {[%clk 0:04:55.9]}
2... d5 {[%clk 0:04:59]} 3. e5 {[%clk 0:04:49.7]} 3... Ne7 {[%clk 0:04:54.1]} 4.
d4 {[%clk 0:04:48.8]} 4... Nf5 {[%clk 0:04:53.1]} 5. Be3 {[%clk 0:04:35.4]} 5...
Be7 {[%clk 0:04:40.1]} 6. Be2 {[%clk 0:04:33.8]} 6... b6 {[%clk 0:04:38.8]} 7.
c3 {[%clk 0:04:30.2]} 7... c5 {[%clk 0:04:37.6]} 8. dxc5 {[%clk 0:04:26.4]} 8...
bxc5 {[%clk 0:04:36.6]} 9. Bb5+ {[%clk 0:04:20.2]} 9... Bd7 {[%clk 0:04:33]} 10.
Qa4 {[%clk 0:04:18.5]} 10... Bxb5 {[%clk 0:04:28.1]} 11. Qxb5+ {[%clk
0:04:16.3]} 11... Nd7 {[%clk 0:04:27.6]} 12. Nbd2 {[%clk 0:03:48.4]} 12... O-O
{[%clk 0:04:24.7]} 13. c4 {[%clk 0:03:43]} 13... Nxe3 {[%clk 0:04:16.7]} 14.
fxe3 {[%clk 0:03:41.5]} 14... Bg5 {[%clk 0:04:12.6]} 15. cxd5 {[%clk 0:03:31.1]}
15... exd5 {[%clk 0:04:11.3]} 16. Nxg5 {[%clk 0:03:21.4]} 16... Qxg5 {[%clk
0:04:08.2]} 17. O-O-O {[%clk 0:03:20.5]} 17... Qxe5 {[%clk 0:04:06.3]} 18. Qxd7
{[%clk 0:03:15.2]} 18... Rab8 {[%clk 0:04:03.7]} 19. b3 {[%clk 0:03:12]} 19...
Qxe3 {[%clk 0:03:56.9]} 20. Qxd5 {[%clk 0:03:06.4]} 20... Qc3+ {[%clk
0:03:55.2]} 21. Kb1 {[%clk 0:02:59.8]} 21... Rfd8 {[%clk 0:03:52]} 22. Qc4
{[%clk 0:02:52.1]} 22... Qxc4 {[%clk 0:03:42.5]} 23. Nxc4 {[%clk 0:02:51.7]}
23... Rxd1+ {[%clk 0:03:38.8]} 24. Rxd1 {[%clk 0:02:50.2]} 24... f6 {[%clk
0:03:37.3]} 25. Na5 {[%clk 0:02:47]} 25... g5 {[%clk 0:03:28.6]} 26. Nc6 {[%clk
0:02:45.7]} 26... Rb7 {[%clk 0:03:23.8]} 27. Rc1 {[%clk 0:02:31.2]} 27... Rd7
{[%clk 0:03:13.3]} 28. Rxc5 {[%clk 0:02:27.8]} 28... Rd1+ {[%clk 0:03:11.5]} 29.
Kc2 {[%clk 0:02:26.7]} 29... Rg1 {[%clk 0:03:09.4]} 30. g3 {[%clk 0:02:23.3]}
30... Rg2+ {[%clk 0:03:08.5]} 31. Kd3 {[%clk 0:02:19.3]} 31... Rxh2 {[%clk
0:03:07.6]} 32. Nxa7 {[%clk 0:02:17.1]} 32... Rxa2 {[%clk 0:03:06.7]} 33. Nc8
{[%clk 0:02:11.9]} 33... Rg2 {[%clk 0:03:00.7]} 34. Ne7+ {[%clk 0:02:10.5]}
34... Kf7 {[%clk 0:02:59.1]} 35. Nf5 {[%clk 0:02:09.4]} 35... Kg6 {[%clk
0:02:57.5]} 36. Ke3 {[%clk 0:02:02.2]} 36... h5 {[%clk 0:02:55.1]} 37. Kf3
{[%clk 0:02:00.5]} 37... Rb2 {[%clk 0:02:51.9]} 38. Nd4 {[%clk 0:01:55.2]} 38...
g4+ {[%clk 0:02:47.2]} 39. Kf4 {[%clk 0:01:53.7]} 39... Rh2 {[%clk 0:02:34.7]}
40. b4 {[%clk 0:01:49.1]} 40... Rb2 {[%clk 0:02:31.5]} 41. b5 {[%clk 0:01:46.8]}
41... Rb4 {[%clk 0:02:30.5]} 42. Rd5 {[%clk 0:01:38.5]} 42... h4 {[%clk
0:02:14.9]} 43. Kxg4 {[%clk 0:01:30.9]} 43... hxg3 {[%clk 0:02:13.1]} 44. Kxg3
{[%clk 0:01:30]} 44... Kf7 {[%clk 0:02:04]} 45. Nc6 {[%clk 0:01:25.9]} 45...
Rb3+ {[%clk 0:01:58.6]} 46. Kf4 {[%clk 0:01:23.1]} 46... Rb1 {[%clk 0:01:56.7]}
47. Nd4 {[%clk 0:01:02]} 47... Rb4 {[%clk 0:01:53.9]} 48. Kf5 {[%clk 0:00:56.2]}
48... Rb1 {[%clk 0:01:52.3]} 49. Ne6 {[%clk 0:00:54.4]} 49... Re1 {[%clk
0:01:49.3]} 50. Nf4 {[%clk 0:00:52.2]} 50... Rf1 {[%clk 0:01:47.9]} 51. b6
{[%clk 0:00:50.8]} 51... Rb1 {[%clk 0:01:46.7]} 52. Rd7+ {[%clk 0:00:49.8]}
52... Ke8 {[%clk 0:01:45]} 53. Rb7 {[%clk 0:00:46.2]} 53... Kd8 {[%clk
0:01:42.6]} 54. Kxf6 {[%clk 0:00:44.2]} 54... Kc8 {[%clk 0:01:41.9]} 55. Rc7+
{[%clk 0:00:38.8]} 55... Kb8 {[%clk 0:01:39.9]} 56. Rc6 {[%clk 0:00:36.5]} 56...
Kb7 {[%clk 0:01:37.9]} 57. Re6 {[%clk 0:00:34.5]} 57... Rxb6 {[%clk 0:01:35.8]}
58. Rxb6+ {[%clk 0:00:30]} 58... Kxb6 {[%clk 0:01:35.3]} 1/2-1/2

[Event "Live Chess"]
[Site "Chess.com"]
[Date "2023.05.21"]
[Round "-"]
[White "raminguy"]
[Black "ramses-IIG"]
[Result "1-0"]
[WhiteElo "1954"]
[BlackElo "870"]
[TimeControl "300"]
[EndTime "20:07:38 PDT"]
[Termination "raminguy won by checkmate"]

1. d4 {[%clk 0:04:58.6]} 1... d5 {[%clk 0:04:57.5]} 2. Nc3 {[%clk 0:04:57.7]}
2... Nc6 {[%clk 0:04:57.4]} 3. e4 {[%clk 0:04:56.2]} 3... dxe4 {[%clk
0:04:54.7]} 4. d5 {[%clk 0:04:56.1]} 4... Nb4 {[%clk 0:04:43.3]} 5. a3 {[%clk
0:04:52.7]} 5... Na6 {[%clk 0:04:40.8]} 6. Bb5+ {[%clk 0:04:50.4]} 6... Bd7
{[%clk 0:04:37.2]} 7. Bxa6 {[%clk 0:04:49]} 7... bxa6 {[%clk 0:04:35.9]} 8. Nxe4
{[%clk 0:04:47.8]} 8... e6 {[%clk 0:04:30.4]} 9. dxe6 {[%clk 0:04:35.4]} 9...
Bxe6 {[%clk 0:04:28.9]} 10. Qxd8+ {[%clk 0:04:32.8]} 10... Rxd8 {[%clk
0:04:28.5]} 11. Nf3 {[%clk 0:04:31.7]} 11... Be7 {[%clk 0:04:26.8]} 12. O-O
{[%clk 0:04:30]} 12... f6 {[%clk 0:04:26.3]} 13. Be3 {[%clk 0:04:23.9]} 13...
Ra8 {[%clk 0:04:21.2]} 14. Rfe1 {[%clk 0:04:13.3]} 14... Bd8 {[%clk 0:04:17.9]}
15. Nc5 {[%clk 0:04:05.4]} 15... Bd5 {[%clk 0:04:08.2]} 16. Nd4 {[%clk
0:03:44.1]} 16... Ne7 {[%clk 0:04:03.8]} 17. Rad1 {[%clk 0:03:32.8]} 17... O-O
{[%clk 0:04:01.2]} 18. Bf4 {[%clk 0:03:28.8]} 18... c6 {[%clk 0:03:58.3]} 19.
Nxa6 {[%clk 0:03:20.3]} 19... Ba5 {[%clk 0:03:51.1]} 20. b4 {[%clk 0:03:14.5]}
20... Bb6 {[%clk 0:03:48.9]} 21. Rxe7 {[%clk 0:03:11.4]} 21... Bxd4 {[%clk
0:03:45.7]} 22. Rxd4 {[%clk 0:03:08.8]} 22... Rfd8 {[%clk 0:03:38.9]} 23. f3
{[%clk 0:02:46.1]} 23... h6 {[%clk 0:03:35.3]} 24. Nc7 {[%clk 0:02:34.6]} 24...
Rab8 {[%clk 0:03:28.2]} 25. Nxd5 {[%clk 0:02:32.7]} 25... cxd5 {[%clk
0:03:25.6]} 26. Bxb8 {[%clk 0:02:30.9]} 26... Rxb8 {[%clk 0:03:21.5]} 27. Rxa7
{[%clk 0:02:29.2]} 27... Rb5 {[%clk 0:03:18.8]} 28. Ra5 {[%clk 0:02:26.6]} 28...
Rxa5 {[%clk 0:03:17.3]} 29. bxa5 {[%clk 0:02:25.3]} 29... Kf7 {[%clk 0:03:15.6]}
30. Rxd5 {[%clk 0:02:24.4]} 30... Ke6 {[%clk 0:03:15]} 31. c4 {[%clk 0:02:24.3]}
31... f5 {[%clk 0:03:12.4]} 32. a6 {[%clk 0:02:24.2]} 32... g6 {[%clk
0:03:11.7]} 33. a7 {[%clk 0:02:24.1]} 33... g5 {[%clk 0:03:10.5]} 34. a8=Q
{[%clk 0:02:24]} 34... g4 {[%clk 0:03:09.6]} 35. Qc6+ {[%clk 0:02:23.8]} 35...
Ke7 {[%clk 0:03:07.9]} 36. Rd7+ {[%clk 0:02:23.7]} 36... Ke8 {[%clk 0:03:07]}
37. Qc8# {[%clk 0:02:23.6]} 1-0

[Event "Live Chess"]
[Site "Chess.com"]
[Date "2023.05.21"]
[Round "-"]
[White "Olisingapore"]
[Black "garyjc"]
[Result "0-1"]
[WhiteElo "1773"]
[BlackElo "1050"]
[TimeControl "300"]
[EndTime "20:07:48 PDT"]
[Termination "garyjc won by checkmate"]

1. d4 {[%clk 0:04:58.6]} 1... Nf6 {[%clk 0:04:57.5]} 2. c4 {[%clk 0:04:58.1]}
2... g6 {[%clk 0:04:56.6]} 3. g3 {[%clk 0:04:57]} 3... Bg7 {[%clk 0:04:56]} 4.
Bg2 {[%clk 0:04:56.3]} 4... O-O {[%clk 0:04:55.2]} 5. Nc3 {[%clk 0:04:55.5]}
5... d6 {[%clk 0:04:53.9]} 6. Nf3 {[%clk 0:04:55]} 6... Nbd7 {[%clk 0:04:51.2]}
7. O-O {[%clk 0:04:54.6]} 7... Re8 {[%clk 0:04:50.6]} 8. Re1 {[%clk 0:04:53]}
8... e5 {[%clk 0:04:49.6]} 9. e4 {[%clk 0:04:51.6]} 9... Nb6 {[%clk 0:04:42.4]}
10. Qd3 {[%clk 0:04:47.5]} 10... Be6 {[%clk 0:04:39.6]} 11. h3 {[%clk
0:04:46.2]} 11... Bxc4 {[%clk 0:04:37.5]} 12. Qd2 {[%clk 0:04:43.8]} 12... Qe7
{[%clk 0:04:14]} 13. b3 {[%clk 0:04:39.3]} 13... Ba6 {[%clk 0:04:11.3]} 14. dxe5
{[%clk 0:04:34.8]} 14... dxe5 {[%clk 0:04:02.9]} 15. Bb2 {[%clk 0:04:33.5]}
15... Rad8 {[%clk 0:04:00.1]} 16. Qc2 {[%clk 0:04:30.7]} 16... Nfd7 {[%clk
0:03:42.6]} 17. a3 {[%clk 0:04:21.1]} 17... Nf6 {[%clk 0:03:17.7]} 18. Rad1
{[%clk 0:04:13.3]} 18... Nfd7 {[%clk 0:02:48.8]} 19. b4 {[%clk 0:04:11]} 19...
Nc4 {[%clk 0:02:42.5]} 20. b5 {[%clk 0:04:04.8]} 20... Nxb2 {[%clk 0:02:23.9]}
21. Qxb2 {[%clk 0:04:02.7]} 21... Bxb5 {[%clk 0:02:13.8]} 22. Nxb5 {[%clk
0:03:56.9]} 22... Nc5 {[%clk 0:02:00.5]} 23. Nc3 {[%clk 0:03:14.6]} 23... Nd3
{[%clk 0:01:54.5]} 24. Rxd3 {[%clk 0:03:09.2]} 24... Rxd3 {[%clk 0:01:52.1]} 25.
Nd5 {[%clk 0:03:05.5]} 25... Qxa3 {[%clk 0:01:43.9]} 26. Qxb7 {[%clk 0:02:27.5]}
26... Rb3 {[%clk 0:01:10]} 27. Qc6 {[%clk 0:02:18.1]} 27... Rxf3 {[%clk
0:00:46.2]} 28. Qxe8+ {[%clk 0:02:11.4]} 28... Bf8 {[%clk 0:00:44]} 29. Bxf3
{[%clk 0:02:09.2]} 29... Qxf3 {[%clk 0:00:42]} 30. Ne7+ {[%clk 0:02:07.4]} 30...
Kg7 {[%clk 0:00:40]} 31. Nd5 {[%clk 0:02:03.6]} 31... Bc5 {[%clk 0:00:24]} 32.
Qxe5+ {[%clk 0:01:57.7]} 32... Kf8 {[%clk 0:00:19.9]} 33. Nxc7 {[%clk
0:01:44.5]} 33... Qxf2+ {[%clk 0:00:18.2]} 34. Kh1 {[%clk 0:01:41.8]} 34...
Qxe1+ {[%clk 0:00:13.6]} 35. Kg2 {[%clk 0:01:39.7]} 35... Qf2+ {[%clk
0:00:11.7]} 36. Kh1 {[%clk 0:01:38.1]} 36... Qg1# {[%clk 0:00:08.4]} 0-1

[Event "Live Chess"]
[Site "Chess.com"]
[Date "2023.05.21"]
[Round "-"]
[White "BostonStrangler"]
[Black "Long1968"]
[Result "1-0"]
[WhiteElo "2055"]
[BlackElo "1051"]
[TimeControl "300"]
[EndTime "20:08:21 PDT"]
[Termination "BostonStrangler won on time"]

1. Nf3 {[%clk 0:04:58.7]} 1... d5 {[%clk 0:04:56.9]} 2. g3 {[%clk 0:04:58.3]}
2... c5 {[%clk 0:04:53.6]} 3. Bg2 {[%clk 0:04:57.9]} 3... Nc6 {[%clk 0:04:51.5]}
4. O-O {[%clk 0:04:54.4]} 4... Nf6 {[%clk 0:04:48.4]} 5. d4 {[%clk 0:04:52.4]}
5... cxd4 {[%clk 0:04:43.8]} 6. Nxd4 {[%clk 0:04:51]} 6... e5 {[%clk 0:04:36.4]}
7. Nxc6 {[%clk 0:04:50]} 7... bxc6 {[%clk 0:04:33.8]} 8. c4 {[%clk 0:04:49.9]}
8... Be6 {[%clk 0:04:27.2]} 9. Nc3 {[%clk 0:04:48.3]} 9... Be7 {[%clk
0:03:59.1]} 10. Qa4 {[%clk 0:04:40.7]} 10... Qd7 {[%clk 0:03:50.4]} 11. cxd5
{[%clk 0:04:38.4]} 11... cxd5 {[%clk 0:03:39.7]} 12. Qxd7+ {[%clk 0:04:35.1]}
12... Kxd7 {[%clk 0:03:34.8]} 13. Rd1 {[%clk 0:04:34]} 13... e4 {[%clk
0:03:20.8]} 14. Nxe4 {[%clk 0:04:27.2]} 14... Rab8 {[%clk 0:02:28.5]} 15. b3
{[%clk 0:04:18.6]} 15... Nxe4 {[%clk 0:02:15]} 16. Bxe4 {[%clk 0:04:17]} 16...
Bf6 {[%clk 0:02:06.6]} 17. Rb1 {[%clk 0:04:15.5]} 17... Kc6 {[%clk 0:01:39.5]}
18. Bd3 {[%clk 0:04:12]} 18... Rhe8 {[%clk 0:01:24.3]} 19. Bf4 {[%clk
0:04:04.2]} 19... Bg4 {[%clk 0:01:14.6]} 20. f3 {[%clk 0:03:57]} 20... Bd4+
{[%clk 0:01:08.6]} 21. Kg2 {[%clk 0:03:54.1]} 21... Bh5 {[%clk 0:00:54.8]} 22.
g4 {[%clk 0:03:36.3]} 22... Bg6 {[%clk 0:00:50.6]} 23. Bxb8 {[%clk 0:03:26.3]}
23... Rxb8 {[%clk 0:00:16.9]} 24. Bxg6 {[%clk 0:03:22]} 24... hxg6 {[%clk
0:00:14.6]} 25. Rxd4 {[%clk 0:03:21]} 25... Re8 {[%clk 0:00:07.3]} 26. Kf2
{[%clk 0:03:19.2]} 26... Rh8 {[%clk 0:00:02.9]} 27. Rc1+ {[%clk 0:03:13.1]} 1-0